bitfinex/quotes_SOLUSD_20241223
["timestamp","ask_amount","ask_price","bid_price","bid_amount"]
[1734917448564,0.83252238,179.9,179.83,44.07769975]
[1734917448964,1.3897,179.89,179.83,44.07769975]
[1734917449170,0.83252238,179.88,179.83,44.07769975]
[1734917450074,1.3898,179.87,179.81,44.07769975]
[1734917450286,20.83252238,179.86,179.79,44.07769975]
[1734917450967,0.83252238,179.86,179.79,44.07769975]
[1734917451169,20.0,179.84,179.77,44.07769975]
[1734917451486,0.83252238,179.83,179.77,44.07769975]
[1734917451668,0.83252238,179.83,179.79,44.07769975]
[1734917451870,20.83252238,179.86,179.79,44.07769975]
[1734917452069,20.83252238,179.86,179.8,44.07769975]
[1734917452579,20.0,179.85,179.8,44.07769975]
[1734917452890,0.83252238,179.84,179.78,44.07769975]
[1734917453187,0.83252238,179.84,179.82,44.07769975]
[1734917453391,0.83252238,179.86,179.82,44.07769975]
[1734917454587,0.83252238,179.86,179.8,44.07769975]
[1734917454791,0.83252238,179.86,179.82,44.07769975]
[1734917455700,1.39,179.85,179.8,44.07769975]
[1734917455994,0.83252238,179.84,179.78,44.07769975]
[1734917456676,20.0,179.83,179.78,44.07769975]
[1734917456882,0.83252238,179.82,179.78,44.07769975]
[1734917457091,0.83252238,179.85,179.8,44.07769975]
[1734917457271,0.83252238,179.88,179.84,44.07769975]
[1734917457476,0.83252238,179.88,179.86,44.07769975]
[1734917458481,0.83252238,179.89,179.86,44.07769975]
[1734917458979,2.7776,180.02,179.88,44.07769975]
[1734917458980,0.83252238,179.93,179.88,44.07769975]
[1734917459175,0.83252238,179.99,179.92,44.07769975]
[1734917459575,44.07769975,179.98,179.88,44.07769975]
[1734917459775,0.83252238,179.97,179.88,44.07769975]
[1734917460289,20.0,179.95,179.88,44.07769975]
[1734917460492,0.83252238,179.94,179.88,44.07769975]
[1734917461185,2.22182238,179.94,179.88,44.07769975]
[1734917462900,2.22182238,179.94,179.78,0.95915018]
[1734917462901,0.83252238,179.94,179.92,44.07769975]
[1734917463104,1.389,179.98,179.93,44.07769975]
[1734917463270,0.83252238,179.97,179.96,44.07769975]
[1734917463475,1.389,179.98,179.96,44.07769975]
[1734917463673,1.3887,180.02,179.96,44.07769975]
[1734917463898,0.83252238,180.01,179.96,44.07769975]
[1734917464176,0.83252238,180.01,180.0,44.07769975]
[1734917464377,44.07769975,180.04,179.94,44.07769975]
[1734917464580,44.07769975,180.02,179.94,44.07769975]
[1734917464872,0.83252238,180.01,179.98,44.07769975]
[1734917465073,0.83252238,180.05,180.0,44.07769975]
[1734917465278,0.83252238,180.05,180.02,44.07769975]
[1734917466001,0.83252238,180.09,180.02,44.07769975]
[1734917466203,0.83252238,180.09,180.06,44.07769975]
[1734917466403,44.07769975,180.14,179.9,23.902374]
[1734917466404,0.83252238,180.12,180.08,44.07769975]
[1734917466584,2.22032238,180.14,180.1,44.07769975]
[1734917466900,2.22032238,180.14,179.97,6.2537]
[1734917466901,2.22032238,180.14,180.08,44.07769975]
[1734917467477,2.22032238,180.14,180.0,0.83298473]
[1734917467478,0.83252238,180.16,180.12,44.07769975]
[1734917467686,0.83252238,180.16,180.1,44.07769975]
[1734917467892,0.83252238,180.16,179.99,3.0634]
[1734917467893,44.91022213,180.16,180.08,44.07769975]
[1734917468089,0.83252238,180.16,180.1,44.07769975]
[1734917468491,0.83252238,180.17,180.12,44.07769975]
[1734917468694,0.83252238,180.17,180.1,44.07769975]
[1734917468895,0.83252238,180.17,180.08,44.07769975]
[1734917469092,1.3876,180.16,180.08,44.07769975]
[1734917469292,0.83252238,180.15,180.08,44.07769975]
[1734917469497,0.83252238,180.15,180.12,44.07769975]
[1734917469711,0.83252238,180.19,180.14,44.07769975]
[1734917469903,0.83252238,180.19,180.16,44.07769975]
[1734917470485,0.83252238,180.23,180.18,44.07769975]
[1734917471195,1.3871,180.22,180.18,44.07769975]
[1734917471385,0.83252238,180.21,180.18,44.07769975]
[1734917472307,1.3871,180.22,180.18,44.07769975]
[1734917472517,0.83252238,180.21,180.18,44.07769975]
[1734917472805,1.3873,180.2,180.16,44.07769975]
[1734917473105,0.83252238,180.19,180.16,44.07769975]
[1734917474103,1.3875,180.18,180.12,44.07769975]
[1734917474382,0.83252238,180.19,180.16,44.07769975]
[1734917474614,2.21972238,180.22,180.18,44.07769975]
[1734917474787,1.3872,180.22,180.18,44.07769975]
[1734917474990,0.83252238,180.25,180.2,44.07769975]
[1734917475189,1.387,180.24,180.2,44.07769975]
[1734917475393,0.83252238,180.23,180.2,44.07769975]
[1734917475994,1.3866,180.29,180.22,44.07769975]
[1734917476204,1.3866,180.29,180.28,44.07769975]
[1734917477517,0.83252238,180.35,180.28,44.07769975]
[1734917477811,0.6678417,180.36,180.34,44.07769975]
[1734917478812,0.6678417,180.36,180.32,44.07769975]
[1734917478999,0.6678417,180.36,180.34,44.07769975]
[1734917480105,0.6678417,180.36,180.3,44.07769975]
[1734917480313,2.21862238,180.35,180.3,44.07769975]
[1734917480524,0.6678417,180.36,180.32,44.07769975]
[1734917480711,0.83252238,180.35,180.32,44.07769975]
[1734917480890,0.6678417,180.36,180.34,44.07769975]
[1734917483199,0.6678417,180.36,180.35,0.83143084]
[1734917484214,1.3852,180.48,180.36,23.902374]
[1734917484428,0.83252238,180.52,180.46,44.07769975]
[1734917484609,1.57608708,180.55,180.48,44.07769975]
[1734917484922,45.65378683,180.55,180.46,44.07769975]
[1734917485129,44.07769975,180.53,180.43,44.07769975]
[1734917485333,0.83252238,180.52,180.43,44.07769975]
[1734917485507,0.83252238,180.52,180.45,44.07769975]
[1734917485833,2.21722238,180.54,180.47,44.07769975]
[1734917486220,2.21722238,180.54,180.45,44.07769975]
[1734917486414,44.07769975,180.53,180.45,44.07769975]
[1734917486734,0.83252238,180.52,180.47,44.07769975]
[1734917486935,0.83252238,180.53,180.47,44.07769975]
[1734917487406,44.07769975,180.51,180.43,44.07769975]
[1734917487612,0.83252238,180.5,180.43,44.07769975]
[1734917488051,20.0,180.46,180.39,44.07769975]
[1734917488350,20.0,180.44,180.37,44.07769975]
[1734917488521,0.83252238,180.45,180.41,44.07769975]
[1734917488874,45.46279975,180.49,180.43,44.07769975]
[1734917488875,20.83252238,180.48,180.43,44.07769975]
[1734917489208,20.0,180.46,180.39,44.07769975]
[1734917489438,20.0,180.42,180.35,44.07769975]
[1734917489615,20.0,180.42,180.37,44.07769975]
[1734917489808,45.46279975,180.49,180.41,44.07769975]
[1734917490014,20.83252238,180.48,180.43,44.07769975]
[1734917491011,1.3852,180.47,180.41,44.07769975]
[1734917491251,0.83252238,180.46,180.39,44.07769975]
[1734917491417,20.0,180.44,180.37,44.07769975]
[1734917491614,20.0,180.42,180.37,44.07769975]
[1734917491813,0.83252238,180.41,180.35,44.07769975]
[1734917492053,20.0,180.4,180.35,44.07769975]
[1734917492355,20.0,180.38,180.31,44.07769975]
[1734917492655,7.2828,180.47,180.21,9.8681]
[1734917492656,20.0,180.34,180.27,44.07769975]
[1734917492967,20.0,180.34,180.21,9.8681]
[1734917492968,0.83252238,180.34,180.29,44.07769975]
[1734917493332,1.3861,180.36,180.21,10.70014378]
[1734917493333,22.21862238,180.36,180.31,44.07769975]
[1734917493532,22.21862238,180.36,180.21,10.70014378]
[1734917493533,44.07769975,180.45,180.35,44.07769975]
[1734917493764,0.83252238,180.44,180.38,44.07769975]
[1734917493982,1.3855,180.44,180.38,44.07769975]
[1734917494132,0.83252238,180.43,180.38,44.07769975]
[1734917494560,0.83252238,180.46,180.4,44.07769975]
[1734917494743,0.83252238,180.46,180.42,44.07769975]
[1734917494948,0.83252238,180.48,180.44,44.07769975]
[1734917495279,1.3851,180.49,180.44,44.07769975]
[1734917495437,0.83252238,180.48,180.44,44.07769975]
[1734917495639,0.83252238,180.48,180.42,44.07769975]
[1734917495951,44.07769975,180.47,180.38,44.07769975]
[1734917496155,0.83252238,180.46,180.4,44.07769975]
[1734917496335,20.83252238,180.46,180.38,44.07769975]
[1734917496871,0.83252238,180.46,180.38,44.07769975]
[1734917497180,20.0,180.44,180.36,44.07769975]
[1734917497334,0.83252238,180.43,180.36,44.07769975]
[1734917497531,0.83252238,180.43,180.3,7.3472695]
[1734917497737,0.83252238,180.43,180.38,44.07769975]
[1734917498735,20.83252238,180.44,180.38,44.07769975]
[1734917499974,0.83252238,180.44,180.38,44.07769975]
[1734917500187,0.83252238,180.46,180.42,44.07769975]
[1734917500402,2.21762238,180.49,180.42,44.07769975]
[1734917501053,2.21762238,180.49,180.44,44.07769975]
[1734917501252,0.83252238,180.52,180.46,44.07769975]
[1734917501469,1.3848,180.53,180.48,44.07769975]
[1734917501470,2.21732238,180.53,180.48,44.07769975]
[1734917502469,0.83252238,180.52,180.48,44.07769975]
[1734917502647,1.3848,180.53,180.48,44.07769975]
[1734917502853,0.83252238,180.52,180.48,44.07769975]
[1734917503160,1.3849,180.51,180.44,44.07769975]
[1734917503363,0.83252238,180.5,180.44,44.07769975]
[1734917503559,20.83252238,180.5,180.42,44.07769975]
[1734917503790,20.83252238,180.5,180.3,9.24282361]
[1734917503791,20.0,180.48,180.4,44.07769975]
[1734917503955,0.83252238,180.47,180.4,44.07769975]
[1734917504156,44.07769975,180.45,180.38,44.07769975]
[1734917504360,0.83252238,180.44,180.36,44.07769975]
[1734917504558,44.07769975,180.43,180.34,44.07769975]
[1734917504772,20.0,180.4,180.34,44.07769975]
[1734917505078,0.83252238,180.39,180.34,44.07769975]
[1734917505262,2.21842238,180.39,180.34,44.07769975]
[1734917505965,0.83252238,180.42,180.38,44.07769975]
[1734917506272,1.3856,180.43,180.25,0.83176537]
[1734917506273,1.3856,180.43,180.4,44.07769975]
[1734917506857,0.83252238,180.42,180.38,44.07769975]
[1734917507061,0.83252238,180.45,180.4,44.07769975]
[1734917507964,0.83252238,180.46,180.4,44.07769975]
[1734917508186,44.91022213,180.46,180.38,44.07769975]
[1734917508567,44.91022213,180.46,180.36,44.07769975]
[1734917508889,44.07769975,180.44,180.36,44.07769975]
[1734917509069,4.1558,180.47,180.24,20.0609]
[1734917509070,44.07769975,180.42,180.34,44.07769975]
[1734917509256,0.83252238,180.41,180.32,44.07769975]
[1734917509457,45.46349975,180.4,180.3,44.07769975]
[1734917509680,0.83252238,180.39,180.3,44.07769975]
[1734917510064,20.0,180.37,180.3,44.07769975]
[1734917510265,0.83252238,180.36,180.3,44.07769975]
[1734917510581,20.0,180.37,180.3,44.07769975]
[1734917510875,0.33252238,180.36,180.3,44.07769975]
[1734917511255,0.33252238,180.37,180.32,44.07769975]
[1734917511479,20.33252238,180.39,180.34,44.07769975]
[1734917512069,20.33252238,180.39,180.3,44.07769975]
[1734917512070,20.0,180.37,180.3,44.07769975]
[1734917512269,20.0,180.35,180.28,44.07769975]
[1734917512600,0.33252238,180.34,180.28,44.07769975]
[1734917512903,1.3858,180.4,180.32,44.07769975]
[1734917513107,0.33252238,180.46,180.37,44.07769975]
[1734917513108,1.3855,180.44,180.37,44.07769975]
[1734917513254,0.33252238,180.43,180.35,44.07769975]
[1734917513454,45.46329975,180.42,180.35,44.07769975]
[1734917513780,0.33252238,180.41,180.33,44.07769975]
[1734917513964,0.33252238,180.41,180.35,44.07769975]
[1734917514665,0.33252238,180.41,180.33,44.07769975]
[1734917514867,0.33252238,180.41,180.35,44.07769975]
[1734917515062,1.71792238,180.46,180.39,44.07769975]
[1734917515270,1.71792238,180.46,180.28,20.0]
[1734917515271,0.33252238,180.47,180.41,44.07769975]
[1734917515472,0.33252238,180.49,180.35,0.12549]
[1734917515671,1.3851,180.5,180.41,44.07769975]
[1734917515672,44.29532213,180.5,180.41,44.07769975]
[1734917515870,44.07769975,180.5,180.41,44.07769975]
[1734917516887,45.46279975,180.5,180.41,44.07769975]
[1734917517101,20.0,180.49,180.41,44.07769975]
[1734917517308,20.0,180.43,180.37,44.07769975]
[1734917517513,20.0,180.49,180.35,44.07769975]
[1734917517514,44.07769975,180.44,180.35,44.07769975]
[1734917517801,44.07769975,180.42,180.33,44.07769975]
[1734917518587,1.3857,180.41,180.33,44.07769975]
[1734917518961,1.3854,180.45,180.39,44.07769975]
[1734917519357,45.46309975,180.45,180.35,44.07769975]
[1734917520583,45.46309975,180.45,180.37,44.07769975]
[1734917520759,1.3854,180.45,180.39,44.07769975]
[1734917521582,44.07769975,180.49,180.39,44.07769975]
[1734917521773,1.3851,180.48,180.39,44.07769975]
[1734917522172,1.3851,180.48,180.41,44.07769975]
[1734917524486,1.3851,180.48,180.39,44.07769975]
[1734917524802,44.07769975,180.47,180.37,44.07769975]
[1734917525090,44.07769975,180.47,180.39,44.07769975]
[1734917525588,20.0,180.44,180.37,44.07769975]
[1734917525890,44.07769975,180.47,180.39,44.07769975]
[1734917526183,44.07769975,180.51,180.43,44.07769975]
[1734917526405,45.46259975,180.51,180.43,44.07769975]
[1734917526571,57.82028211,180.55,180.47,44.07769975]
[1734917526776,10.41588236,180.55,180.49,44.07769975]
[1734917527171,54.49358211,180.55,180.47,44.07769975]
[1734917527568,46.20596445,180.55,180.47,44.07769975]
[1734917528606,0.7435647,180.55,180.54,44.07769975]
[1734917529863,0.7435647,180.55,180.54,44.20318975]
[1734917530069,0.7435647,180.55,180.54,67.98007375]
[1734917530276,0.7435647,180.55,180.54,44.07769975]
[1734917531114,0.7435647,180.55,180.54,44.20318975]
[1734917531275,0.7435647,180.55,180.54,44.07769975]
[1734917532588,2.7676,180.66,180.54,44.07769975]
[1734917532589,50.64389975,180.72,180.54,44.07769975]
[1734917532794,1.3835,180.7,180.63,44.07769975]
[1734917534000,45.46119975,180.7,180.63,44.07769975]
[1734917534583,45.46119975,180.7,180.61,44.07769975]
[1734917534887,1.3835,180.7,180.63,44.07769975]
[1734917535488,46.20446445,180.74,180.65,44.07769975]
[1734917535703,45.46089975,180.74,180.67,44.07769975]
[1734917535908,45.46089975,180.74,180.69,44.07769975]
[1734917535909,0.418666,180.74,180.69,44.07769975]
[1734917536127,44.49636575,180.74,180.67,44.07769975]
[1734917536402,44.49636575,180.74,180.65,44.07769975]
[1734917537505,1.3832,180.73,180.65,44.07769975]
[1734917537905,44.07769975,180.7,180.61,44.07769975]
[1734917538117,6.5931,180.72,180.57,44.07769975]
[1734917538118,20.0,180.65,180.57,44.07769975]
[1734917538288,39.07636676,180.67,180.51,4.22584901]
[1734917538483,39.07636676,180.69,180.6,39.07636676]
[1734917538686,6.5931,180.72,180.51,4.22584901]
[1734917538687,39.07636676,180.71,180.62,39.07636676]
[1734917538889,6.5931,180.72,180.64,39.07636676]
[1734917539107,40.45956676,180.73,180.66,39.07636676]
[1734917539311,40.45956676,180.73,180.64,39.07636676]
[1734917540215,1.3832,180.73,180.66,43.42353479]
[1734917540382,6.491,180.76,180.68,43.42353479]
[1734917540583,99.52391798,180.92,180.72,43.42353479]
[1734917540584,1.383,180.77,180.72,43.42353479]
[1734917540889,43.42353479,180.8,180.72,43.42353479]
[1734917541094,43.42353479,180.76,180.68,43.42353479]
[1734917541715,43.42353479,180.78,180.68,43.42353479]
[1734917542018,43.42353479,180.76,180.68,43.42353479]
[1734917542599,1.3832,180.73,180.68,43.42353479]
[1734917543021,21.3832,180.73,180.66,43.42353479]
[1734917543405,21.3832,180.73,180.6,0.83024694]
[1734917543406,1.3832,180.73,180.68,43.42353479]
[1734917543602,1.3832,180.73,180.7,43.42353479]
[1734917543927,20.0,180.72,180.66,43.42353479]
[1734917544495,1.3832,180.73,180.66,43.42353479]
[1734917544813,0.418666,180.74,180.7,43.42353479]
[1734917545199,0.418666,180.74,180.72,43.42353479]
[1734917545713,0.418666,180.74,180.7,43.42353479]
[1734917546215,0.418666,180.74,180.69,43.42353479]
[1734917546216,1.801866,180.74,180.69,43.42353479]
[1734917547617,1.801866,180.74,180.67,43.42353479]
[1734917547794,1.801866,180.74,180.65,43.42353479]
[1734917548113,20.0,180.72,180.65,43.42353479]
[1734917548512,1.801866,180.74,180.67,43.42353479]
[1734917548817,1.801866,180.74,180.69,43.42353479]
[1734917550313,0.418666,180.74,180.71,43.42353479]
[1734917551318,0.418666,180.74,180.61,3.39661285]
[1734917551319,0.418666,180.74,180.73,43.42353479]
[1734917552811,0.418666,180.74,180.73,43.54902479]
[1734917553010,0.418666,180.74,180.73,43.42353479]
[1734917553620,17.94097153,180.75,180.74,23.902374]
[1734917553801,0.7091633,180.83,180.74,24.7319084]
[1734917554006,0.7091633,180.83,180.82,43.42353479]
[1734917554717,0.7091633,180.83,180.82,44.2528495]
[1734917555100,1.381,181.03,180.9,20.0]
[1734917555304,2.47440276,181.07,180.9,20.0]
[1734917555305,1.3807,181.07,180.99,43.42353479]
[1734917555620,1.3799,181.17,181.0,23.902374]
[1734917555792,1.3799,181.17,181.0,24.73096177]
[1734917555998,1.3799,181.17,181.11,43.42353479]
[1734917556199,1.3799,181.17,181.09,43.42353479]
[1734917556401,53.93343215,181.21,181.11,43.42353479]
[1734917556700,2.2222797,181.21,181.15,43.42353479]
[1734917556901,2.2222797,181.21,181.17,43.42353479]
[1734917557528,2.2222797,181.21,181.15,43.42353479]
[1734917558121,45.64581449,181.21,181.13,43.42353479]
[1734917558320,1.3798,181.18,181.06,0.82788022]
[1734917558621,1.3798,181.18,181.02,6.1239]
[1734917558622,1.3798,181.18,181.13,43.42353479]
[1734917559193,45.64581449,181.21,181.13,43.42353479]
[1734917559421,44.13269809,181.19,181.1,43.42353479]
[1734917559621,23.776884,181.16,181.08,43.42353479]
[1734917559810,44.13269809,181.19,181.1,43.42353479]
[1734917560124,0.7091633,181.19,181.12,43.42353479]
[1734917560310,2.0889633,181.19,181.14,43.42353479]
[1734917560510,2.0889633,181.19,181.12,43.42353479]
[1734917560812,2.0889633,181.19,181.02,0.8279897]
[1734917561003,43.42353479,181.18,181.1,43.42353479]
[1734917561200,43.42353479,181.16,181.08,43.42353479]
[1734917561423,23.776884,181.1,181.02,43.42353479]
[1734917561800,43.42353479,181.09,181.0,43.42353479]
[1734917561996,43.42353479,181.05,180.91,0.82860393]
[1734917562317,43.42353479,181.05,180.88,6.6434]
[1734917562318,40.29239884,181.04,180.95,38.91149884]
[1734917562514,1.3809,181.04,180.97,38.91149884]
[1734917562719,20.0,181.03,180.97,38.91149884]
[1734917562918,38.91149884,181.02,180.93,38.91149884]
[1734917563230,20.0,181.03,180.91,38.91149884]
[1734917563231,23.902374,180.99,180.91,38.91149884]
[1734917563520,3.3941,181.0,180.95,38.91149884]
[1734917563699,3.3941,181.14,180.99,38.91149884]
[1734917563903,3.3941,181.14,180.88,30.0]
[1734917563904,3.3941,181.14,181.09,38.91149884]
[1734917564324,3.3941,181.14,181.07,45.09320704]
[1734917564508,45.09320704,181.12,181.03,45.09320704]
[1734917565413,1.3802,181.13,181.05,45.09320704]
[1734917565608,2.7591,181.22,181.07,45.09320704]
[1734917565609,46.47310704,181.18,181.07,45.09320704]
[1734917565824,45.09320704,181.16,181.07,45.09320704]
[1734917566028,4.1395,181.18,181.02,45.09320704]
[1734917566231,45.09320704,181.11,181.02,45.09320704]
[1734917566728,45.09320704,181.09,181.0,45.09320704]
[1734917567419,45.09320704,181.05,180.95,45.09320704]
[1734917567626,1.3806,181.08,180.95,45.09320704]
[1734917567627,45.09320704,181.03,180.95,45.09320704]
[1734917568027,45.09320704,181.06,180.97,45.09320704]
[1734917568409,48.43150704,181.1,181.01,45.09320704]
[1734917568627,48.43150704,181.1,180.88,6.5938]
[1734917568628,45.09320704,181.16,181.07,45.09320704]
[1734917568837,1.3799,181.17,181.09,45.09320704]
[1734917569133,45.09320704,181.16,181.07,45.09320704]
[1734917569331,45.09320704,181.2,181.11,45.09320704]
[1734917569628,3.6018797,181.21,181.13,45.09320704]
[1734917569833,2.2222797,181.21,181.17,45.09320704]
[1734917570413,2.2222797,181.21,181.13,45.09320704]
[1734917570620,45.09320704,181.2,181.13,45.09320704]
[1734917570935,45.09320704,181.19,181.1,45.09320704]
[1734917571123,45.09320704,181.15,181.06,45.09320704]
[1734917571317,46.47310704,181.17,181.08,45.09320704]
[1734917572042,45.09320704,181.19,180.97,0.82820338]
[1734917572224,3.6018797,181.21,180.96,51.73450704]
[1734917572225,45.09320704,181.17,181.08,45.09320704]
[1734917572423,45.09320704,181.19,181.1,45.09320704]
[1734917573145,1.3798,181.18,181.1,45.09320704]
[1734917573326,20.0,181.16,181.08,45.09320704]
[1734917573634,20.0,181.12,180.97,0.82835898]
[1734917573940,45.09320704,181.13,181.04,45.09320704]
[1734917574661,23.902374,181.12,181.04,45.09320704]
[1734917575142,1.3806,181.07,181.02,45.09320704]
[1734917575342,48.60230704,181.13,181.04,45.09320704]
[1734917575845,1.3804,181.11,181.04,45.09320704]
[1734917576050,65.21869704,181.1,181.0,45.09320704]
[1734917576252,45.09320704,181.06,180.98,45.09320704]
[1734917576645,20.0,181.03,180.96,45.09320704]
[1734917576847,20.0,181.01,180.94,45.09320704]
[1734917577045,20.0,181.01,180.84,0.82881679]
[1734917577046,1.3811,181.01,180.92,45.09320704]
[1734917577240,3.5091,180.99,180.92,45.09320704]
[1734917577454,20.0,180.95,180.88,45.09320704]
[1734917577623,20.0,180.95,180.83,0.3403809]
[1734917577624,20.0,180.93,180.86,45.09320704]
[1734917577945,20.0,180.95,180.86,45.09320704]
[1734917578933,45.09320704,180.96,180.88,45.09320704]
[1734917579130,45.09320704,180.94,180.86,45.09320704]
[1734917579334,23.902374,180.93,180.84,45.09320704]
[1734917579639,45.09320704,180.92,180.84,45.09320704]
[1734917579853,0.12549,180.88,180.83,0.3403809]
[1734917580042,23.776884,180.89,180.83,0.3403809]
[1734917580371,23.776884,180.89,180.7,6.3148]
[1734917580372,23.776884,180.85,180.76,45.09320704]
[1734917580575,45.09320704,180.84,180.76,45.09320704]
[1734917580864,20.0,180.83,180.74,45.09320704]
[1734917581027,25.284874,180.82,180.74,45.09320704]
[1734917581229,20.0,180.79,180.72,45.09320704]
[1734917581548,3.2377,180.85,180.78,45.09320704]
[1734917581854,45.09320704,180.92,180.84,45.09320704]
[1734917582071,45.09320704,180.88,180.8,45.09320704]
[1734917582270,45.09320704,180.9,180.8,45.09320704]
[1734917582567,45.09320704,180.9,180.82,45.09320704]
[1734917583262,45.09320704,180.9,180.8,45.09320704]
[1734917583467,9.7112,180.93,180.84,45.09320704]
[1734917583629,45.09320704,180.91,180.73,20.82922675]
[1734917583960,54.80440704,180.93,180.83,45.09320704]
[1734917584255,3.4149,180.93,180.89,45.09320704]
[1734917585056,22.97701741,180.97,180.87,45.09320704]
[1734917585356,22.97701741,180.97,180.76,0.82917439]
[1734917585357,22.97701741,180.97,180.89,45.09320704]
[1734917585949,45.09320704,180.93,180.85,45.09320704]
[1734917586541,45.09320704,180.91,180.83,45.09320704]
[1734917587251,20.0,180.9,180.85,45.09320704]
[1734917587443,45.09320704,180.95,180.85,45.09320704]
[1734917587638,20.0,180.92,180.85,45.09320704]
[1734917588237,21.3818,180.92,180.83,45.09320704]
[1734917588435,0.12549,180.9,180.83,45.09320704]
[1734917588633,45.09320704,180.89,180.81,45.09320704]
[1734917588938,45.09320704,180.91,180.81,45.09320704]
[1734917589142,1.3818,180.92,180.86,45.09320704]
[1734917589143,20.0,180.9,180.86,45.09320704]
[1734917589533,21.3818,180.92,180.84,45.09320704]
[1734917589739,20.0,180.9,180.84,45.09320704]
[1734917589932,45.09320704,180.93,180.8,45.09320704]
[1734917589933,43.776884,180.88,180.8,45.09320704]
[1734917590156,20.0,180.86,180.73,0.82929593]
[1734917590346,20.0,180.85,180.79,38.97977949]
[1734917590542,38.97977949,180.9,180.81,38.97977949]
[1734917590749,1.3817,180.93,180.85,38.97977949]
[1734917591250,38.97977949,180.92,180.83,38.97977949]
[1734917591631,38.97977949,180.92,180.85,38.97977949]
[1734917591836,23.776884,180.93,180.85,38.97977949]
[1734917592046,20.0,180.9,180.83,38.97977949]
[1734917592354,23.776884,180.89,180.81,38.97977949]
[1734917592543,38.97977949,180.92,180.83,38.97977949]
[1734917592737,20.0,180.91,180.85,38.97977949]
[1734917592943,38.97977949,180.94,180.87,38.97977949]
[1734917593254,6.907,180.97,180.7,6.3244]
[1734917593255,38.97977949,180.9,180.83,38.97977949]
[1734917593455,38.97977949,180.88,180.81,38.97977949]
[1734917593653,38.97977949,180.88,180.79,38.97977949]
[1734917593831,38.97977949,180.86,180.77,38.97977949]
[1734917594541,1.3822,180.87,180.81,38.97977949]
[1734917594746,38.97977949,180.9,180.81,38.97977949]
[1734917595748,1.382,180.89,180.81,38.97977949]
[1734917596133,1.3818,180.93,180.86,38.97977949]
[1734917596537,38.97977949,180.92,180.84,38.97977949]
[1734917597459,1.3819,180.9,180.84,38.97977949]
[1734917597659,1.3817,180.94,180.88,38.97977949]
[1734917597867,42.30837949,180.98,180.9,38.97977949]
[1734917598068,43.68977949,180.98,180.9,38.97977949]
[1734917598268,3.3974,181.13,180.96,38.97977949]
[1734917598447,40.36007949,181.12,181.04,38.97977949]
[1734917598648,3.3974,181.13,181.06,38.97977949]
[1734917598855,38.97977949,181.18,181.1,38.97977949]
[1734917599059,3.277,181.2,181.1,38.97977949]
[1734917599060,42.25677949,181.2,181.1,38.97977949]
[1734917599264,38.97977949,181.18,181.1,38.97977949]
[1734917599448,1.38,181.16,181.1,38.97977949]
[1734917599768,38.97977949,181.14,181.06,38.97977949]
[1734917600261,45.10111821,181.14,181.06,45.10111821]
[1734917600464,20.0,181.11,181.04,45.10111821]
[1734917600642,45.10111821,181.12,181.04,45.10111821]
[1734917600838,45.10111821,181.14,181.04,45.10111821]
[1734917601042,20.0,181.11,181.04,45.10111821]
[1734917601241,20.0,181.1,181.04,45.10111821]
[1734917602054,1.3803,181.11,181.06,45.10111821]
[1734917602255,1.38,181.15,181.08,45.10111821]
[1734917603068,1.38,181.15,181.06,45.10111821]
[1734917603267,45.10111821,181.14,181.06,45.10111821]
[1734917603570,45.10111821,181.12,181.04,45.10111821]
[1734917604367,23.776884,181.11,181.04,45.10111821]
[1734917604546,45.10111821,181.1,181.02,45.10111821]
[1734917605161,1.3803,181.11,181.04,45.10111821]
[1734917605360,1.3803,181.11,181.06,45.10111821]
[1734917605557,45.10111821,181.14,181.06,45.10111821]
[1734917605763,45.10111821,181.14,180.92,0.82832749]
[1734917605764,1.3801,181.15,181.08,45.10111821]
[1734917607869,45.10111821,181.18,181.08,45.10111821]
[1734917608076,45.10111821,181.18,181.1,45.10111821]
[1734917608762,45.10111821,181.16,181.08,45.10111821]
[1734917609073,45.10111821,181.14,181.06,45.10111821]
[1734917609376,45.10111821,181.1,181.02,45.10111821]
[1734917609880,65.10111821,181.12,181.02,45.10111821]
[1734917610059,45.10111821,181.1,181.02,45.10111821]
[1734917610662,1.3805,181.09,181.02,45.10111821]
[1734917611050,1.3805,181.09,180.96,45.10111821]
[1734917611051,65.10111821,181.05,180.96,45.10111821]
[1734917611250,45.10111821,181.01,180.94,45.10111821]
[1734917611778,45.10111821,181.03,180.96,45.10111821]
[1734917611966,45.10111821,181.03,180.94,45.10111821]
[1734917612473,20.0,181.05,180.87,0.82880101]
[1734917612474,65.10111821,181.05,180.96,45.10111821]
[1734917612651,3.285,181.06,181.0,45.10111821]
[1734917613465,46.48191821,181.05,180.98,45.10111821]
[1734917613783,46.48191821,181.05,180.96,45.10111821]
[1734917614080,45.10111821,181.03,180.96,45.10111821]